Cogmind - Beta 10.2 @@@ ROGUE MODE // 2021.04.27 @ 00:00:52 Player: nprez Result: Destroyed by D-53 Grenadier with Mini Grenade Launcher Performance ------------- Evolutions (1) 500 Regions Visited (4) 800 Robots Destroyed (19) 95 Value Destroyed (494) 494 Prototype IDs (0) 0 Alien Tech Used (0) 0 Bonus (50) 50 TOTAL SCORE: 1939 Bonus ------- Follower Combat Kills 50 Cogmind --------- Core Integrity 0/400 Matter 279/300 Energy 90/100 System Corruption 0% Temperature Cool (0) Movement Core (200) Ox3 Location -9/Mines Parts ------- > --- POWER (1) -------- (None) > --- PROPULSION (4) --- (None) > --- UTILITY (2) ------ Small Storage Unit Improved Signal Interpreter > --- WEAPON (2) ------- Rocket Launcher Hammer > --- INVENTORY (6) ---- Light Nuclear Core Light Nuclear Core Heat Sink Heavy Particle Cannon Heavy Particle Cannon Peak State ------------ > --- POWER ------------ Light Nuclear Core > --- PROPULSION ------- Flight Unit Flight Unit Flight Unit > --- UTILITY ---------- Small Storage Unit Improved Signal Interpreter > --- WEAPON ----------- Heavy Particle Cannon Heavy Particle Cannon > --- INVENTORY -------- Light Nuclear Core Light Nuclear Core Heat Sink Heavy Particle Cannon Heavy Particle Cannon Rocket Launcher [Rating: 16] Favorites ----------- Power Light Nuclear Core Engine Light Ion Engine Power Core Light Nuclear Core Propulsion Flight Unit Leg Aluminum Leg Wheel Compact Wheel Flight Unit Flight Unit Utility Small Storage Unit Device Cooling System Storage Small Storage Unit Processor Improved Signal Interpreter Weapon Beam Rifle Energy Gun Beam Rifle Energy Cannon Heavy Particle Cannon Ballistic Gun Assault Rifle Ballistic Cannon Light Cannon Launcher Grenade Launcher Special Weapon Mining Laser Impact Weapon Hammer Build | -11 -10 -10 -9 -9 ------- Run | Scr Mat Min Mat Min Slots Evolved 2 | . . . 2 . Power . | . . . . . Propulsion 2 | . . . 2 . Utility . | . . . . . Weapon . | . . . . . Parts Attached 42 | 6 6 16 9 5 Power 8 | 1 1 4 2 . Engine 7 | 1 1 4 1 . Core 1 | . . . 1 . Reactor . | . . . . . Propulsion 11 | 2 . 5 2 2 Treads . | . . . . . Leg 2 | . . . . 2 Wheel 2 | 2 . . . . Hover . | . . . . . Flight 7 | . . 5 2 . Utility 5 | 1 2 . 2 . Device 3 | . 2 . 1 . Storage 1 | 1 . . . . Processor 1 | . . . 1 . Hackware . | . . . . . Protection . | . . . . . Artifact . | . . . . . Weapon 18 | 2 3 7 3 3 Energy Gun 8 | 1 2 4 1 . Energy Cannon 2 | . . . 2 . Ballistic Gun 1 | 1 . . . . Ballistic Cannon 1 | . 1 . . . Launcher 4 | . . 3 . 1 Special Weapon 1 | . . . . 1 Impact Weapon 1 | . . . . 1 Slashing Weapon . | . . . . . Piercing Weapon . | . . . . . Special Melee Weapon . | . . . . . Unidentified Prototypes . | . . . . . Parts Lost 16 | . . 6 4 6 Power 2 | . . 1 . 1 Propulsion 9 | . . 3 2 4 Utility 1 | . . . 1 . Weapon 4 | . . 2 1 1 Highest Loss Streak 6 | . . 3 2 6 Average Slot Usage (%) 86 | . 97 94 83 77 Engine 7 | . 14 14 5 . Core 4 | . . . 5 10 Leg 1 | . . . . 4 Wheel 5 | . 28 5 . . Flight 20 | . . 19 30 19 Device 7 | . 12 14 6 . Storage 12 | . 14 14 11 11 Processor 3 | . . . 2 11 Energy Gun 12 | . 21 24 11 . Energy Cannon 6 | . . . 11 8 Special Weapon 2 | . . . . 8 Naked Turns . | . . . . . Heaviest Build 22 | 13 17 17 22 21 Greatest Support 26 | 26 26 16 12 20 Greatest Overweight (x) 4 | 1 . 4 2 3 Average Overweight (x) . | . . . 1 . Largest Inventory Capacity 6 | 6 6 6 6 6 Average Capacity 5 | 5 6 6 6 6 Most Carried 6 | 6 6 6 6 6 Average Carried 5 | 2 5 5 5 5 Final Capacity 6 | 6 6 6 6 6 Final Carried 6 | 6 6 6 6 5 Class Distribution -------------------- 95% | Mutant 4% | Scavenger-Mutant Dominant Class ---------------- Mutant | -10/Materials Mutant | -10/Mines Mutant | -9/Materials Mutant | -9/Mines Resources | -11 -10 -10 -9 -9 ----------- Run | Scr Mat Min Mat Min Matter Collected 600 | 135 83 202 140 40 Remotely . | . . . . . Salvage Created 490 | . 83 161 211 35 Parts 43 | . 5 21 15 2 Haulers Intercepted . | . . . . . Recyclers Shooed . | . . . . . Parts Field Recycled . | . . . . . Retrieved Matter . | . . . . . Parts Self-Destructed . | . . . . . Prevented . | . . . . . Kills | -11 -10 -10 -9 -9 ------- Run | Scr Mat Min Mat Min Combat Hostiles Destroyed 18 | . 2 10 5 1 Guns 9 | . 2 5 2 . Cannons 4 | . . . 3 1 AOE 5 | . . 5 . . Classes Destroyed 5 | . 1 2 . 2 Builder 1 | . . . . 1 Swarmer 8 | . . 8 . . Grunt 5 | . 2 . 3 . Brawler 1 | . . . . 1 Sentry 4 | . . 2 2 . Best Kill Streak 4 | . 1 4 2 1 Combat Bots Only 4 | . 1 4 2 1 Max Kills in Single Turn 3 | . 1 3 1 1 Gunslinging . | . . . . . Exploded 3 | . . 3 . . Melee . | . . . . . Uniques/NPCs Destroyed . | . . . . . Combat | -11 -10 -10 -9 -9 -------- Run | Scr Mat Min Mat Min Damage Taken 1561 | . 163 431 274 693 Core 544 | . 41 99 88 316 Absorbed by Shields . | . . . . . Core Remaining (%) 72 | 100 . 44 . . Volleys Fired 42 | . 11 14 15 2 Largest 2 | . 2 2 2 2 Hottest 175 | . 112 112 150 175 Shots Fired 81 | . 22 26 30 3 Gun 56 | . 22 22 12 . Cannon 19 | . . . 18 1 Launcher 5 | . . 4 . 1 Special 1 | . . . . 1 Kinetic . | . . . . . Thermal 76 | . 22 22 30 2 Explosive 5 | . . 4 . 1 Electromagnetic . | . . . . . Robot Hit Streak 8 | . 7 5 6 8 Robot Miss Streak 4 | . 1 3 4 . Penetration Max . | . . . . . Secondary Targets 2 | . . 2 . . Max Gunslinging Chain 1 | . . 1 . . Shots Hit Robots 54 | . 15 15 19 5 Core Hits 28 | . 4 14 8 2 Critical Hits . | . . . . . Critical Kills . | . . . . . Critical Parts Destroyed . | . . . . . Melee Attacks 4 | . . . . 4 Impact 4 | . . . . 4 Slashing . | . . . . . Piercing . | . . . . . Sneak Attacks . | . . . . . Combat Hostiles . | . . . . . Follow-up Attacks . | . . . . . Damage Inflicted 1004 | . 173 339 367 125 Guns 435 | . 173 145 117 . Cannons 275 | . . . 250 25 Explosions 251 | . . 194 . 57 Melee 19 | . . . . 19 Ramming . | . . . . . Kinetic . | . . . . . Thermal 734 | . 173 145 367 49 Explosive 251 | . . 194 . 57 Electromagnetic . | . . . . . Impact 19 | . . . . 19 Slashing . | . . . . . Piercing . | . . . . . Highest Corruption . | . . . . . Average Corruption . | . . . . . Corruption Purged . | . . . . . Overload Shots . | . . . . . Overflow Damage 65 | . . 42 5 18 Projectiles 5 | . . . 5 . Explosions 60 | . . 42 . 18 Melee . | . . . . . Knockbacks . | . . . . . Impact . | . . . . . Kinetic . | . . . . . Secondary . | . . . . . Self-Inflicted Damage 160 | . . 126 . 34 Shots 5 | . . 4 . 1 Rammed . | . . . . . Targets Rammed . | . . . . . Kicked . | . . . . . Crushed . | . . . . . Highest Temperature 309 | . 41 . 309 80 Average Temperature 103 | . 22 . 120 41 Received Heat Transfer 243 | . 93 27 117 6 Siege Activations . | . . . . . Robots Corrupted . | . . . . . Combat Hostiles . | . . . . . Parts Fried . | . . . . . Impact Corruptions . | . . . . . Robots Melted . | . . . . . Combat Hostiles . | . . . . . Parts Melted 1 | . 1 . . . Heat Transferred 1567 | . 444 370 666 87 Parts Sabotaged . | . . . . . Parts Stolen . | . . . . . Parts Stripped . | . . . . . Power Chain Reactions . | . . . . . Missiles Intercepted . | . . . . . Alert | -11 -10 -10 -9 -9 ------- Run | Scr Mat Min Mat Min Peak Influence 250 | . 50 219 250 171 Initial 97 | . . 19 85 97 Average 112 | . 11 140 155 114 Maximum Alert Level 1 | . . 1 1 . Low Security (%) 91 | 100 100 89 81 100 Level 1 8 | . . 10 18 . Level 2 . | . . . . . Level 3 . | . . . . . Level 4 . | . . . . . Level 5 . | . . . . . High Security . | . . . . . Max Security . | . . . . . Squads Dispatched 1 | . . . 1 . Investigation 1 | . . . 1 . Extermination . | . . . . . Reinforcement . | . . . . . Assault . | . . . . . Garrison . | . . . . . Intercept . | . . . . . Construction Impeded . | . . . . . Haulers Reinforced . | . . . . . Stealth | -11 -10 -10 -9 -9 --------- Run | Scr Mat Min Mat Min Distress Signals . | . . . . . Communications Jammed . | . . . . . Distress Signals . | . . . . . Times Spotted 25 | . 2 11 7 5 Peak Tracking Total 3 | . 2 3 2 3 Tactical Retreats 2 | . . 1 1 . Traps | -11 -10 -10 -9 -9 ------- Run | Scr Mat Min Mat Min Traps Triggered 1 | . . . 1 . Indirectly . | . . . . . Trap Hack Attempts . | . . . . . Triggered . | . . . . . Disarmed 4 | . . . 4 . Reprogrammed . | . . . . . Reused . | . . . . . Traps Extracted . | . . . . . Installed . | . . . . . Triggered . | . . . . . Machines | -11 -10 -10 -9 -9 ---------- Run | Scr Mat Min Mat Min Machines Disabled 3 | . . 2 1 . Max in Single Turn 2 | . . 2 1 . Machines Sabotaged . | . . . . . Garrisons Compromised . | . . . . . Overloaded Fab Kills . | . . . . . Fab Network Shutdowns . | . . . . . Hacking | -11 -10 -10 -9 -9 --------- Run | Scr Mat Min Mat Min Machines Accessed 2 | . . . 2 . Terminals 1 | . . . 1 . Fabricators . | . . . . . Repair Stations 1 | . . . 1 . Recycling Units . | . . . . . Scanalyzers . | . . . . . Garrison Access . | . . . . . Total Hacks 10 | . . . 10 . Successful 4 | . . . 4 . Failed 6 | . . . 6 . Catastrophic . | . . . . . Database Lockouts . | . . . . . Manual . | . . . . . Terminals 8 | . . . 8 . Fabricators . | . . . . . Repair Stations 2 | . . . 2 . Recycling Units . | . . . . . Scanalyzers . | . . . . . Garrison Access . | . . . . . Terminal Hacks 3 | . . . 3 . Disarm Traps 1 | . . . 1 . Investigation Status 1 | . . . 1 . Hauler Manifests 1 | . . . 1 . Fabricator Hacks . | . . . . . Repair Station Hacks 1 | . . . 1 . Scan Component 1 | . . . 1 . Recycling Unit Hacks . | . . . . . Scanalyzer . | . . . . . Garrison Access Hacks . | . . . . . Unauthorized Hacks . | . . . . . Terminals . | . . . . . Fabricators . | . . . . . Repair Stations . | . . . . . Recycling Units . | . . . . . Scanalyzers . | . . . . . Garrison Access . | . . . . . Data Cores Recovered . | . . . . . Used . | . . . . . Hacking Detections 2 | . . . 2 . Full Trace Events . | . . . . . Feedback Events . | . . . . . Feedback Blocked . | . . . . . Robot Schematics Acquired . | . . . . . Robots Built . | . . . . . Matter . | . . . . . Time . | . . . . . Total Robot Build Rating . | . . . . . Part Schematics Acquired . | . . . . . Parts Built . | . . . . . Matter . | . . . . . Time . | . . . . . Total Part Build Rating . | . . . . . Parts Repaired . | . . . . . Time . | . . . . . Parts Recycled . | . . . . . Recycled Matter . | . . . . . Retrieved Matter . | . . . . . Retrieved Components . | . . . . . Parts Scanalyzed . | . . . . . Part Schematics Acquired . | . . . . . Parts Damaged . | . . . . . Bothacking | -11 -10 -10 -9 -9 ------------ Run | Scr Mat Min Mat Min Used RIF Installer . | . . . . . Robots Hacked . | . . . . . Non-combat . | . . . . . Combat . | . . . . . Robot Hacks Applied . | . . . . . Relay Couplers Released . | . . . . . Robots Rewired . | . . . . . Allies Hacked . | . . . . . Hacks Repelled . | . . . . . Allies | -11 -10 -10 -9 -9 -------- Run | Scr Mat Min Mat Min Total Allies 1 | . . . . 1 Largest Group 1 | . . . . 1 Highest-Rated Group 31 | . . . . 31 Highest-Rated Ally 31 | . . . . 31 Total Orders . | . . . . . Ally Attacks 2 | . . . . 2 Total Damage 44 | . . . . 44 Kills 2 | . . . . 2 Allies Corrupted . | . . . . . Allies Melted . | . . . . . Intel | -11 -10 -10 -9 -9 ------- Run | Scr Mat Min Mat Min Robot Analysis Total . | . . . . . Derelict Logs Recovered 2 | . . 1 . 1 Drone Launches . | . . . . . Drone Recoveries . | . . . . . Exploration | -11 -10 -10 -9 -9 ------------- Run | Scr Mat Min Mat Min Turns Passed 1039 | 64 144 222 342 267 Spaces Moved 676 | 54 100 129 203 190 Core 9 | 5 . 2 . 2 Treads . | . . . . . Legs 40 | . . . . 40 Wheels 189 | 49 100 40 . . Hover . | . . . . . Flight 438 | . . 87 203 148 Fastest Speed 37 | 50 90 37 114 117 Average Speed 114 | 88 90 118 121 124 Slowest Speed 285 | 100 90 285 197 200 Overloaded Moves . | . . . . . Propulsion Burnouts . | . . . . . Robots Hopped . | . . . . . Cave-ins Triggered . | . . . . . Exploration Rate (%) 22 | 3 19 30 16 44 Regions Visited 4 Branch Regions 2 Pre-discovered Areas 1 | . . 1 . . Known Exits Taken 1 | . . . 1 . Unknown Exits Taken 3 | 1 1 1 . . Scrap Searched . | . . . . . Spaces Dug . | . . . . . Terrain Destroyed 31 | . . 20 7 4 Melee . | . . . . . Projectile 7 | . . . 7 . AOE 24 | . . 20 . 4 Terrain Rammed . | . . . . . Walls Destroyed . | . . . . . Machines Disabled . | . . . . . Actions | -11 -10 -10 -9 -9 --------- Run | Scr Mat Min Mat Min Total 852 | 69 133 170 271 209 Wait 29 | . 2 . 21 6 Move 672 | 53 99 128 202 190 Hop . | . . . . . Pick Up 32 | 10 6 5 11 . Fast Attach 19 | 2 3 5 5 4 Attach 10 | 4 . 3 2 1 Detach . | . . . . . Swap 13 | . 3 8 2 . Drop 31 | . 9 7 13 2 Fire 42 | . 11 14 15 2 Melee 4 | . . . . 4 Ram . | . . . . . Kick . | . . . . . Crush . | . . . . . Escape Stasis . | . . . . . Rewire . | . . . . . Trap . | . . . . . Miscellaneous . | . . . . . Route ------- -11/Scrapyard -10/Materials -10/Mines -9/Materials -9/Mines (discovered 1 exit: [*Mat]) History --------- Turn | Location | Event 23 | -11/Scrapyard | Discovered new exit (range 15) 65 | -11/Scrapyard | Entered Materials 143 | -10/Materials | Discovered new exit (range 14) 209 | -10/Materials | Entered Mines 308 | -10/Mines | Build established: Mutant 376 | -10/Mines | Lost 3 parts (1p2w) 382 | -10/Mines | Learned location of Storage (-9) 389 | -10/Mines | Discovered new exit (range 6) 402 | -10/Mines | Core integrity fell below 50% 431 | -10/Mines | Entered Materials 431 | -9/Materials | Evolved 2 slots: Propulsion x2 763 | -9/Materials | Discovered new exit (range 6) 771 | -9/Materials | Identified exit to Mines 773 | -9/Materials | Entered Mines 776 | -9/Mines | Received a Mining Laser from a helpful Derelict 840 | -9/Mines | Learned Materials terminal intel 1001 | -9/Mines | Assembled infested the area 1006 | -9/Mines | Assisted by a Guerilla fighting off Assembled 1026 | -9/Mines | Discovered new exit (range 8) 1034 | -9/Mines | Core integrity fell below 50% 1040 | -9/Mines | Core integrity fell below 20% 1040 | -9/Mines | Destroyed by D-53 Grenadier with Mini Grenade Launcher Last Messages --------------- 01015_ D-53 Grenadier suffers critical hit. 01015_ HV Slug penetrates D-53 Grenadier. 01015_ D-53 Grenadier suffers critical hit. 01015_ D-53 Grenadier knocked back. 01019_ 6D-GVP(h) destroyed. 01019_ 93-ONK(g) destroyed. 01020_ The unstable cave ceiling collapses. 01021_ Mining Laser destroyed. 01026_ Aluminum Leg destroyed. 01026_ EXIT=FOUND 01027_ Aluminum Leg destroyed. 01031_ The unstable cave ceiling collapses. 01032_ Flexi-carbon Leg crushed. 01032_ U-05 Engineer builds a Wall. 01033_ The unstable cave ceiling collapses. 01034_ Lgt. Nuclear Core destroyed. 01036_ U-05 Engineer lays Concrete. 01039_ The unstable cave ceiling collapses. 01039_ Destroyed Lgt. Ion Engine. 01039_ U-05 Engineer destroyed. Map ----- +----------------------------------------------------+ | ?????????????????????????????????????????????????? | | ?????????????????????????????????????????????????? | | ?????????????????????????????????????????????????? | | ?????????????????????????????????????????????????? | | ?????????????????????????????????????????????????? | | ?????????????????????????????????????????????????? | | ?????????????????????????????????????????????????? | | ?????????????????????????????????????????????????? | | ?????????????????????????????????????????????????? | | ?????????????????????????????????????????????????? | | ?????????????????????????????????????????????????? | | ?????????????????????????????????????????????????? | | ?????????????????????????????????????????????????? | | ?????????????????????????????????????????????????? | | ?????????????????????????????????????????????????? | | ?????????????????????????????????????????????????? | | ????????????????????#???????####?????????????????? | | ????????????????? ??# ????? ##????????????????? | | ????????????????"""?# ????? #????????????????? | | ??????????????# """ # t???? #####????????????? | | ??????????????? """ # #### ?????????????? | | ????????????????? ???????????????? | | ??????????????????# < #????????????????? | | ???????????????????# #?????????????????? | | ????????????????????# d #?????????????????? | | ????????????????????# @ d #?????????????????? | | ????????????????????# #?????????????????? | | ????????????????????# #???????????????### | | ???????????????????## #???????????### # | | ???????????????????# #?????????## | | ???????????????????# # # #?????????# | | ????????????######## # #????????# | | ????????????# =%# $ #???????# | | ????????????# %! # #???????# # | | ????????????# *t ### #??????# #? | | ????????????# """ """ r ###### ##??????## #? | | ????????????# """ """ ## #### ##?###???????## #? | | ????????????# """ """ ##r### ##??????????# #? | | ????????????# ## ##! #??????????# ## | | ????????# """ """ ##t## #???#####?## # | | ????????# ### """ """ ## % %% #??## ### | | ????????????# """ """ ## ## ##??# """ | | ????????????# ## ### ##??## """ | | ????????????############ #?## #?### """ | | ??????????????????????## #??# ### # | | ?????????????????????## ##?# ## #### | | ?????????????????????# ### #########??? | | ?????????????????????# ## ##??????????? | | ?????????????????????## ## ##??????????? | | ??????????????????????## #????????### | +----------------------------------------------------+ Best States ------------- Heat Dissipation 50 Energy Generation 14 Energy Capacity 250 Matter Stores 300 Matter Capacity 300 Sight Range 16 Terrain Scan Density 10 Evasion (%) 42 Item Schematics ----------------- None Robot Schematics ------------------ None Fabricated ------------ Nothing Alien Tech Used ----------------- None Achievements -------------- None Challenges ------------ None Game ------ Seed AbsorptionSpikedAutocannon Manual? 0 Play Time 00:18:39 Cumulative 5.8 hours Start 2021.04.26 @ 23:44:13 End 2021.04.27 @ 00:00:52 Sessions 1 Manual Loads 0 Difficulty Rogue Special Mode None Game No. 5 Rogue 5 Adventurer 0 Explorer 0 Win Type - Total 0 Types 0/0/0/0/0/0/0/0/0 Lore% 4 Gallery% 12 Achievement% 12 Wizard Run 0 Options --------- ASCII 0 Keyboard 0 Movement Mouse Keybinds 0 Fullscreen 2 Font 18/X11 Map View 76x50 Tactical HUD 1 Map Filters NONE Filters NONE Steam 1 RUN: b4654c85-2491-482f-b7f7-e72d133015cc